bitfinex/quotes_BTCUSD_20251116
["timestamp","ask_amount","ask_price","bid_price","bid_amount"]
[1763312305231,0.45216433,94413.0,94412.0,0.00067377]
[1763312305460,0.53704433,94413.0,94412.0,0.00067377]
[1763312305887,0.51710074,94413.0,94412.0,0.00067377]
[1763312307342,0.10463506,94413.0,94412.0,0.00067377]
[1763312307543,0.10534506,94413.0,94412.0,0.00067377]
[1763312307748,0.10866352,94413.0,94412.0,0.00067377]
[1763312310111,0.10795352,94413.0,94412.0,0.00067377]
[1763312310316,0.10463506,94413.0,94412.0,0.00067377]
[1763312311495,0.10536506,94413.0,94412.0,0.00067377]
[1763312311695,0.10463506,94413.0,94412.0,0.00067377]
[1763312312555,0.42836506,94413.0,94412.0,0.00067377]
[1763312312703,0.43168352,94413.0,94412.0,0.00067377]
[1763312312900,0.34680352,94413.0,94412.0,0.00067377]
[1763312313401,0.36342957,94413.0,94412.0,0.00067377]
[1763312313812,0.39047136,94413.0,94412.0,0.00042458]
[1763312314013,0.39047136,94413.0,94412.0,0.00029998]
[1763312314251,0.43359447,94413.0,94412.0,0.00029998]
[1763312315062,0.43459447,94413.0,94412.0,0.00029998]
[1763312315478,0.47739136,94413.0,94412.0,0.00029998]
[1763312316414,0.47739197,94413.0,94412.0,0.00029998]
[1763312316856,0.3881052,94413.0,94412.0,0.00029998]
[1763312317216,0.400502,94413.0,94412.0,0.00029998]
[1763312317434,0.400502,94413.0,94370.0,0.00064]
[1763312317435,0.00073,94409.0,94370.0,0.00064]
[1763312317634,0.50456568,94401.0,94400.0,0.00053519]
[1763312317815,0.55031483,94401.0,94400.0,0.00053519]
[1763312318031,0.55468161,94401.0,94400.0,0.00053519]
[1763312318856,0.55131483,94401.0,94400.0,0.00053519]
[1763312319302,0.56794416,94401.0,94400.0,0.00053519]
[1763312319508,0.57231094,94401.0,94400.0,0.00053519]
[1763312319707,0.55568161,94401.0,94400.0,0.00053519]
[1763312320055,0.61721182,94401.0,94400.0,0.00053519]
[1763312320217,0.61284504,94401.0,94400.0,0.00053519]
[1763312320633,0.55131483,94401.0,94400.0,0.00053519]
[1763312322014,0.52863981,94401.0,94400.0,0.00053519]
[1763312322259,0.20563981,94401.0,94400.0,0.00053519]
[1763312325501,0.29055981,94401.0,94400.0,0.00053519]
[1763312325708,0.31323593,94401.0,94400.0,0.00053519]
[1763312325911,0.26152052,94401.0,94400.0,0.0008695]
[1763312326112,0.22831593,94401.0,94400.0,0.0008695]
[1763312326413,0.20988761,94401.0,94380.0,0.0004]
[1763312326571,0.13000568,94381.0,94380.0,0.00044495]
[1763312326935,0.47607981,94381.0,94380.0,0.00044495]
[1763312327089,0.52368779,94381.0,94380.0,0.00044495]
[1763312327299,0.54638418,94381.0,94380.0,0.00044495]
[1763312327504,0.65861107,94380.0,94350.0,0.0004]
[1763312327681,0.04051,94351.0,94350.0,0.0005347]
[1763312327879,0.06026506,94351.0,94350.0,0.0005347]
[1763312328126,0.06358413,94351.0,94350.0,0.0005347]
[1763312328313,0.02307413,94351.0,94350.0,0.0005347]
[1763312328491,0.02732401,94351.0,94350.0,0.0005347]
[1763312328691,0.02307413,94351.0,94350.0,0.0005347]
[1763312329842,0.02307527,94351.0,94350.0,0.12776344]
[1763312330274,0.02307527,94351.0,94350.0,0.0005347]
[1763312331363,0.02380527,94351.0,94350.0,0.0005347]
[1763312332858,0.02380527,94351.0,94350.0,0.0005947]
[1763312333248,0.02380527,94351.0,94350.0,0.00198829]
[1763312333462,0.06969881,94351.0,94350.0,0.00198829]
[1763312333647,0.04994375,94351.0,94350.0,0.00198829]
[1763312333847,0.06959794,94351.0,94350.0,0.00204829]
[1763312334252,0.06959794,94351.0,94340.0,0.0004]
[1763312334514,0.05479,94341.0,94340.0,0.00053489]
[1763312334735,0.49023008,94341.0,94340.0,0.00053489]
[1763312334934,0.49570908,94341.0,94340.0,0.00053489]
[1763312335311,0.58066908,94341.0,94340.0,0.00053489]
[1763312335917,0.49570908,94341.0,94340.0,0.00053489]
[1763312336232,0.5183237,94341.0,94340.0,0.00053489]
[1763312336460,0.65861107,94335.0,94325.0,0.0003]
[1763312336664,0.45281568,94326.0,94325.0,0.00043527]
[1763312336869,0.30396577,94326.0,94325.0,0.00043527]
[1763312337081,0.0229744,94326.0,94325.0,0.00043527]
[1763312337993,0.0229744,94326.0,94325.0,0.04385401]
[1763312338762,0.02293685,94326.0,94325.0,0.04385401]
[1763312338969,0.02293685,94326.0,94325.0,0.00043527]
[1763312339173,0.01961664,94326.0,94325.0,0.00043527]
[1763312339345,0.02293782,94326.0,94325.0,0.00043527]
[1763312339601,0.02293782,94326.0,94325.0,0.12766401]
[1763312339742,0.10025391,94341.0,94326.0,0.04341874]
[1763312339945,0.01663828,94328.0,94326.0,0.04341874]
[1763312340138,0.10025391,94341.0,94326.0,0.04341874]
[1763312340364,0.10025391,94341.0,94340.0,0.00027922]
[1763312340782,0.15504391,94341.0,94340.0,0.00027922]
[1763312341050,0.17168239,94341.0,94340.0,0.00027922]
[1763312341540,0.11689239,94341.0,94340.0,0.00027922]
[1763312341714,0.10610416,94341.0,94340.0,0.00027922]
[1763312341974,0.10610416,94341.0,94340.0,0.05210276]
[1763312341975,10.10710416,94341.0,94340.0,0.05210276]
[1763312342147,10.10710416,94341.0,94340.0,0.04369796]
[1763312342905,10.01763848,94341.0,94340.0,0.04369796]
[1763312343322,10.01663848,94341.0,94340.0,0.04369796]
[1763312343525,10.01763848,94341.0,94340.0,0.04369796]
[1763312343722,10.001,94341.0,94340.0,0.05210276]
[1763312343922,10.001,94341.0,94340.0,0.04369796]
[1763312344167,10.001,94341.0,94340.0,0.00027922]
[1763312344168,10.0,94341.0,94340.0,0.00027922]
[1763312344681,10.0,94341.0,94340.0,0.12838796]
[1763312344828,10.01663673,94341.0,94340.0,0.12838796]
[1763312345028,10.01663673,94341.0,94340.0,0.04369796]
[1763312345228,10.10159673,94341.0,94340.0,0.04369796]
[1763312345452,10.52826611,94341.0,94340.0,0.04369796]
[1763312345659,10.58479611,94341.0,94340.0,0.00027922]
[1763312346278,10.48112673,94341.0,94340.0,0.00027922]
[1763312346535,10.39616673,94341.0,94340.0,0.00027922]
[1763312346736,10.33963673,94341.0,94340.0,0.00027922]
[1763312347266,10.01663673,94341.0,94340.0,0.00027922]
[1763312348102,9.75827673,94341.0,94340.0,0.00027922]
[1763312348362,7.82926687,94341.0,94340.0,0.45616364]
[1763312348579,7.79739429,94341.0,94340.0,0.36669796]
[1763312350196,7.77339429,94341.0,94340.0,0.36869796]
[1763312350782,7.74154256,94341.0,94340.0,0.36869796]
[1763312350978,7.70969083,94341.0,94340.0,0.37069796]
[1763312351177,7.6778391,94341.0,94340.0,0.36669796]
[1763312351378,7.6778391,94341.0,94340.0,0.37069796]
[1763312351795,7.6778391,94341.0,94340.0,0.36869796]
[1763312352238,7.69750177,94341.0,94340.0,0.36869796]
[1763312352437,7.6778391,94341.0,94340.0,0.36869796]
[1763312352644,7.69750406,94341.0,94340.0,0.36669796]
[1763312352999,7.69750406,94341.0,94340.0,0.37069796]
[1763312353401,7.69750406,94341.0,94340.0,0.36869796]
[1763312353638,7.69750406,94341.0,94340.0,0.32527922]
[1763312353827,7.69750406,94341.0,94340.0,0.32727922]
[1763312353990,7.69750406,94341.0,94340.0,0.37069796]
[1763312355220,7.78247544,94341.0,94340.0,0.37069796]
[1763312355418,7.78247544,94341.0,94340.0,0.32727922]
[1763312355676,7.7627991,94341.0,94340.0,0.32727922]
[1763312355893,7.7627991,94341.0,94340.0,0.37069796]
[1763312356354,7.7627991,94341.0,94340.0,0.36669796]
[1763312356554,7.7627991,94341.0,94340.0,0.36869796]
[1763312356844,7.7627991,94341.0,94340.0,0.00227922]
[1763312357546,7.7627991,94341.0,94340.0,0.00127922]
[1763312358030,7.7627991,94341.0,94340.0,0.04369796]
[1763312358458,7.7627991,94341.0,94340.0,0.00027922]
[1763312359753,7.7627991,94341.0,94340.0,0.04469796]
[1763312360614,7.7627991,94341.0,94340.0,0.04569796]
[1763312369659,7.7627991,94341.0,94340.0,0.00227922]
[1763312369864,7.7627991,94341.0,94340.0,0.04569796]
[1763312370713,7.7627991,94341.0,94340.0,0.04469796]
[1763312370923,7.7627991,94341.0,94340.0,0.04369796]
[1763312371372,7.7627991,94341.0,94340.0,0.00027922]
[1763312371572,7.91560298,94341.0,94340.0,0.00027922]
[1763312371773,7.8215591,94341.0,94340.0,0.00027922]
[1763312372003,7.8215591,94341.0,94333.0,0.01890936]
[1763312372222,0.08946568,94334.0,94333.0,0.01890936]
[1763312372710,0.10917745,94334.0,94333.0,0.01890936]
[1763312374446,0.08946568,94334.0,94333.0,0.01890936]
[1763312375745,0.1091755,94334.0,94333.0,0.01890936]
[1763312376800,0.10466982,94334.0,94333.0,0.0623281]
[1763312376979,0.10467645,94334.0,94333.0,0.0623281]
[1763312377118,0.08496,94334.0,94333.0,0.0623281]
[1763312377731,0.08648634,94340.0,94334.0,0.04341874]
[1763312377921,0.10468445,94339.0,94334.0,0.04341874]
[1763312378126,0.08496,94339.0,94333.0,0.01890936]
[1763312378533,0.08496,94339.0,94334.0,0.04341874]
[1763312379092,0.01972807,94338.0,94334.0,0.04341874]
[1763312379491,0.03636332,94338.0,94334.0,0.04341874]
[1763312379688,0.01972807,94337.0,94334.0,0.04341874]
[1763312380365,0.01663525,94338.0,94336.0,0.04341874]
[1763312380557,0.08496,94336.0,94334.0,0.04341874]
[1763312380770,0.08496,94336.0,94334.0,0.06462]
[1763312380963,0.08496,94336.0,94335.0,0.36641874]
[1763312381432,7.6778391,94341.0,94340.0,0.57841789]
[1763312381433,7.7627991,94341.0,94340.0,0.57841789]
[1763312381636,7.70693813,94341.0,94340.0,0.57741789]
[1763312381784,7.67507716,94341.0,94340.0,0.68911789]
[1763312381986,7.64321619,94341.0,94340.0,0.68911789]
[1763312382221,7.61135522,94341.0,94340.0,0.68911789]
[1763312382384,7.57949425,94341.0,94340.0,0.68911789]
[1763312382579,7.54416949,94341.0,94340.0,0.68911789]
[1763312382828,7.51230852,94341.0,94340.0,0.69211789]
[1763312383030,7.48044755,94341.0,94340.0,0.69211789]
[1763312383371,7.44776653,94341.0,94340.0,0.69011789]
[1763312383573,7.41590556,94341.0,94340.0,0.69211789]
[1763312383706,7.38404459,94341.0,94340.0,0.69211789]
[1763312383907,7.35218362,94341.0,94340.0,0.69111789]
[1763312384139,7.32032265,94341.0,94340.0,0.69311789]
[1763312384340,7.28683161,94341.0,94340.0,0.58141789]
[1763312384544,7.28683161,94341.0,94340.0,0.57941789]
[1763312384545,7.25470865,94341.0,94340.0,0.57941789]
[1763312384903,7.25470865,94341.0,94340.0,0.57741789]
[1763312385113,7.25470865,94341.0,94340.0,0.58141789]
[1763312385336,7.25470865,94341.0,94340.0,0.57941789]
[1763312386108,7.25470865,94341.0,94340.0,0.58147789]
[1763312386481,6.70079445,94341.0,94340.0,0.57947789]
[1763312386693,6.61256716,94341.0,94340.0,0.57947789]
[1763312386910,6.56924692,94341.0,94340.0,0.57953789]
[1763312387156,5.42836886,94341.0,94340.0,0.69123789]
[1763312387354,5.22499408,94341.0,94340.0,0.68929789]
[1763312387589,5.15658327,94341.0,94340.0,0.69129789]
[1763312387797,5.10850016,94341.0,94340.0,0.69335789]
[1763312388015,4.32808267,94341.0,94340.0,0.68935789]
[1763312388221,3.52182502,94341.0,94340.0,0.68935789]
[1763312388420,3.23384678,94341.0,94340.0,0.69335789]
[1763312388624,3.20200157,94341.0,94340.0,0.69335789]
[1763312388831,3.17015636,94341.0,94340.0,0.69435789]
[1763312389028,3.13831115,94341.0,94340.0,0.69435789]
[1763312389229,3.10646594,94341.0,94340.0,0.58065789]
[1763312389460,3.07462073,94341.0,94340.0,0.58065789]
[1763312389803,3.07462073,94341.0,94340.0,0.21423915]
[1763312389981,3.07462073,94341.0,94340.0,0.21723915]
[1763312390202,3.07462073,94341.0,94340.0,0.26065789]
[1763312390328,3.07462073,94341.0,94340.0,0.25765789]
[1763312390816,3.07462073,94341.0,94340.0,0.26065789]
[1763312391174,3.07462073,94341.0,94340.0,0.25765789]
[1763312391343,3.07462073,94341.0,94340.0,0.57765789]
[1763312391544,3.07462073,94341.0,94340.0,0.58365789]
[1763312392843,3.07462073,94341.0,94340.0,0.37265874]
[1763312393138,3.07462073,94341.0,94340.0,0.52175874]
[1763312395865,3.07462073,94341.0,94340.0,0.51875874]
[1763312396227,3.07462073,94341.0,94340.0,0.51675874]
[1763312396779,3.07462073,94341.0,94340.0,0.04565874]
[1763312396969,3.07462073,94341.0,94340.0,0.00224]
[1763312397172,3.07462073,94341.0,94340.0,0.00124]
[1763312397590,3.07462073,94341.0,94340.0,0.00224]
[1763312397767,3.07462073,94341.0,94340.0,0.00124]
[1763312397970,3.07462073,94341.0,94340.0,0.04465874]
[1763312398549,3.07462073,94341.0,94340.0,5.86665874]
[1763312398705,3.07462073,94341.0,94340.0,5.36665874]
[1763312398910,3.07462073,94341.0,94340.0,5.36765874]
[1763312399117,3.07462073,94341.0,94340.0,5.36665874]
[1763312399333,3.07462073,94341.0,94340.0,5.36765874]
[1763312400108,3.07462073,94341.0,94340.0,5.36665874]
[1763312400295,3.07462073,94341.0,94340.0,5.04465874]
[1763312400752,3.07462073,94341.0,94340.0,5.36665874]
[1763312401086,3.07462073,94341.0,94340.0,5.36865874]
[1763312401471,3.07462073,94341.0,94340.0,5.36765874]
[1763312401669,3.07462073,94341.0,94340.0,5.36865874]
[1763312402092,3.07462073,94341.0,94340.0,5.00224]
[1763312402287,3.07462073,94341.0,94340.0,0.00224]
[1763312402513,3.07462073,94341.0,94340.0,0.00124]
[1763312402722,3.07462073,94341.0,94340.0,0.00224]
[1763312403329,3.07462073,94341.0,94340.0,0.00124]
[1763312403539,3.07462073,94341.0,94340.0,5.32424]
[1763312403752,3.07462073,94341.0,94340.0,5.36765874]
[1763312404434,3.07462073,94341.0,94340.0,5.36665874]
[1763312405454,3.07462073,94341.0,94340.0,5.36765874]
[1763312405661,3.07462073,94341.0,94340.0,5.36665874]
[1763312405869,3.07462073,94341.0,94340.0,5.36765874]
[1763312406127,3.07462073,94341.0,94340.0,5.36865874]
[1763312406346,3.07462073,94341.0,94340.0,5.36665874]
[1763312406776,3.07462073,94341.0,94340.0,5.36765874]
[1763312407007,3.07462073,94341.0,94340.0,5.32424]
[1763312407209,3.07462073,94341.0,94340.0,5.36665874]
[1763312407404,3.07462073,94341.0,94340.0,5.57865789]
[1763312407608,3.07462073,94341.0,94340.0,5.57965789]
[1763312407857,3.07462073,94341.0,94340.0,5.36865874]
[1763312408070,3.07462073,94341.0,94340.0,5.36765874]
[1763312408273,3.07462073,94341.0,94340.0,5.36865874]
[1763312409324,3.07462073,94341.0,94340.0,5.58065789]
[1763312409991,3.07462073,94341.0,94340.0,5.36865874]
[1763312410492,3.07462073,94341.0,94340.0,5.58065789]
[1763312410709,3.07462073,94341.0,94340.0,5.57865789]
[1763312410960,3.07462073,94341.0,94340.0,5.57965789]
[1763312411181,3.07462073,94341.0,94340.0,5.58065789]
[1763312412212,3.07462073,94341.0,94340.0,5.57965789]
[1763312412615,3.07462073,94341.0,94340.0,5.65679736]
[1763312412956,3.07462073,94341.0,94340.0,5.65579736]
[1763312413158,3.07462073,94341.0,94340.0,5.65679736]
[1763312413384,3.07462073,94341.0,94340.0,5.58065789]
[1763312414122,3.07462073,94341.0,94340.0,5.36765874]
[1763312414452,3.07462073,94341.0,94340.0,5.36665874]
[1763312414862,3.07462073,94341.0,94340.0,5.36765874]
[1763312415336,3.07462073,94341.0,94340.0,5.32524]
[1763312415675,3.07462073,94341.0,94340.0,5.36765874]
[1763312416085,3.07462073,94341.0,94340.0,5.36865874]
[1763312416802,3.07462073,94341.0,94340.0,5.04565874]
[1763312417202,3.07462073,94341.0,94340.0,5.51775874]
[1763312417835,3.07462073,94341.0,94340.0,5.15134]
[1763312418003,3.07462073,94341.0,94340.0,0.15134]
[1763312418491,3.07462073,94341.0,94340.0,5.47434]
[1763312418613,3.07462073,94341.0,94340.0,5.47234]
[1763312418812,3.07462073,94341.0,94340.0,5.51675874]
[1763312420054,3.07462073,94341.0,94340.0,5.51775874]
[1763312420055,3.07431907,94341.0,94340.0,5.51775874]
[1763312420730,3.07431907,94341.0,94340.0,5.51675874]
[1763312421113,3.07431907,94341.0,94340.0,5.51775874]
[1763312421524,3.07431907,94341.0,94340.0,5.51675874]
[1763312421951,3.07431907,94341.0,94340.0,5.51775874]
[1763312422408,3.07431907,94341.0,94340.0,5.51575874]
[1763312422650,3.07431907,94341.0,94340.0,5.51775874]
[1763312422855,3.07431907,94341.0,94340.0,0.51775874]
[1763312423076,2.86785972,94341.0,94340.0,0.51675874]
[1763312423284,2.86785972,94341.0,94340.0,0.19375874]
[1763312423483,2.86785972,94341.0,94340.0,0.19475874]
[1763312423897,2.86785972,94341.0,94340.0,0.19375874]
[1763312424099,2.86785972,94341.0,94340.0,0.19475874]
[1763312424309,2.86785972,94341.0,94340.0,0.19375874]
[1763312424509,2.86785972,94341.0,94340.0,0.19275874]
[1763312424724,2.86785972,94341.0,94340.0,0.19375874]
[1763312424932,2.86785972,94341.0,94340.0,0.19475874]
[1763312426216,2.65376131,94341.0,94340.0,0.19475874]
[1763312426544,2.65376131,94341.0,94340.0,5.51775874]
[1763312427897,2.65376131,94341.0,94340.0,5.51675874]
[1763312428102,2.65376131,94341.0,94340.0,5.51575874]
[1763312428307,2.65376131,94341.0,94340.0,5.51775874]
[1763312428907,2.65376131,94341.0,94340.0,5.72975789]
[1763312429388,2.65376131,94341.0,94340.0,5.84045789]
[1763312429568,2.65376131,94341.0,94340.0,5.72975789]
[1763312429888,2.65376131,94341.0,94340.0,5.51775874]
[1763312430179,2.65376131,94341.0,94340.0,5.72875789]
[1763312430308,2.65376131,94341.0,94340.0,5.73075789]
[1763312430515,2.65376131,94341.0,94340.0,5.72875789]
[1763312430737,2.65376131,94341.0,94340.0,5.51575874]
[1763312431019,2.65376131,94341.0,94340.0,5.72975789]
[1763312431217,2.65376131,94341.0,94340.0,5.72875789]
[1763312431466,2.65376131,94341.0,94340.0,5.73075789]
[1763312431656,2.65376131,94341.0,94340.0,5.72975789]
[1763312432009,2.65376131,94341.0,94340.0,5.51875874]
[1763312432854,2.65376131,94341.0,94340.0,5.51675874]
[1763312433242,2.65376131,94341.0,94340.0,5.47434]
[1763312433495,2.65376131,94341.0,94340.0,5.51775874]
[1763312433703,2.65376131,94341.0,94340.0,5.47434]
[1763312433908,2.65376131,94341.0,94340.0,5.51675874]
[1763312434352,2.65376131,94341.0,94340.0,5.51775874]
[1763312434577,2.65376131,94341.0,94340.0,5.51675874]
[1763312434804,2.65376131,94341.0,94340.0,5.51575874]
[1763312435027,2.65376131,94341.0,94340.0,5.51775874]
[1763312436216,2.65376131,94341.0,94340.0,5.51675874]
[1763312436415,2.65376131,94341.0,94340.0,5.51775874]
[1763312436776,2.65376131,94341.0,94340.0,5.48062874]
[1763312437238,2.65376131,94341.0,94340.0,5.48162874]
[1763312439974,2.65376131,94341.0,94340.0,5.48062874]
[1763312440496,2.65376131,94341.0,94340.0,5.48162874]
[1763312440713,2.65376131,94341.0,94340.0,5.48062874]
[1763312441062,2.65376131,94341.0,94340.0,5.48162874]
[1763312442919,2.65376131,94341.0,94340.0,5.48062874]
[1763312443723,2.65376131,94341.0,94340.0,5.69362789]
[1763312443923,2.65376131,94341.0,94340.0,5.48062874]
[1763312444291,2.65376131,94341.0,94340.0,5.48162874]
[1763312444805,2.65376131,94341.0,94340.0,5.48062874]
[1763312445287,2.54055131,94341.0,94340.0,5.47811874]
[1763312445621,2.54055131,94341.0,94340.0,5.47911874]
[1763312445937,2.54055131,94341.0,94340.0,5.47811874]
[1763312446152,2.54055131,94341.0,94340.0,5.48111874]
[1763312446388,2.48469202,94341.0,94340.0,5.48111874]
[1763312446613,2.2922366,94341.0,94340.0,5.48011874]
[1763312446827,2.26039066,94341.0,94340.0,5.57546062]
[1763312447050,2.22854472,94341.0,94340.0,5.48211874]
[1763312447265,2.19669878,94341.0,94340.0,5.48211874]
[1763312447511,2.19669878,94341.0,94340.0,5.48011874]
[1763312447715,2.19669878,94341.0,94340.0,5.48211874]
[1763312448363,2.19669878,94341.0,94340.0,5.48011874]
[1763312448777,2.16485284,94341.0,94340.0,5.48311874]
[1763312448967,2.1330069,94341.0,94340.0,5.48311874]
[1763312449146,2.07716096,94341.0,94340.0,5.48111874]
[1763312449355,2.04531502,94341.0,94340.0,5.36841874]
[1763312449565,2.01346908,94341.0,94340.0,5.36841874]
[1763312449768,2.01346908,94341.0,94340.0,5.37041874]
[1763312449769,1.48230572,94341.0,94340.0,5.37041874]
[1763312449932,1.313813,94341.0,94340.0,5.36641874]
[1763312450134,1.28196818,94341.0,94340.0,5.36841874]
[1763312450334,1.25012336,94341.0,94340.0,5.37141874]
[1763312450532,1.21827854,94341.0,94340.0,5.37141874]
[1763312450737,1.18643372,94341.0,94340.0,5.36941874]
[1763312450967,1.12274408,94341.0,94340.0,5.37241874]
[1763312451176,1.09089926,94341.0,94340.0,5.37241874]
[1763312451384,1.05905444,94341.0,94340.0,5.36941874]
[1763312451599,1.02720962,94341.0,94340.0,5.36941874]
[1763312451796,0.08492,94392.0,94384.0,0.21189841]
[1763312452148,0.08492,94392.0,94391.0,6.63735734]
[1763312452554,0.08492,94402.0,94395.0,0.36641874]
[1763312452734,0.08492,94402.0,94399.0,0.323]
[1763312452897,0.08496503,94402.0,94400.0,1.059054]
[1763312453096,0.08496503,94402.0,94401.0,1.42547274]
[1763312454000,0.08496503,94402.0,94401.0,1.6373349]
[1763312454226,0.08496503,94402.0,94401.0,1.42547274]
[1763312454401,0.08496503,94402.0,94401.0,1.42647274]
[1763312455427,0.08496503,94402.0,94401.0,1.42747274]
[1763312455931,0.08496503,94402.0,94401.0,1.42647274]
[1763312456407,0.08496503,94402.0,94401.0,1.42547274]
[1763312456633,0.08496503,94402.0,94401.0,1.42747274]
[1763312456845,0.08496503,94402.0,94401.0,1.6393349]
[1763312457064,0.08496503,94402.0,94401.0,1.6373349]
[1763312457329,0.08496503,94402.0,94401.0,1.42547274]
[1763312457524,0.08496503,94402.0,94401.0,1.42847274]
[1763312458022,0.08496503,94402.0,94401.0,1.42647274]
[1763312458249,0.08496503,94402.0,94401.0,1.42847274]
[1763312458401,0.08496503,94402.0,94401.0,1.57757274]
[1763312458601,0.08496503,94402.0,94401.0,1.57657274]
[1763312459428,0.08496503,94402.0,94401.0,1.57557274]
[1763312459794,0.08496503,94402.0,94401.0,1.57657274]
[1763312461009,0.08496503,94402.0,94401.0,1.57557274]
[1763312461426,0.08496503,94402.0,94401.0,1.57657274]
[1763312461625,0.08496503,94402.0,94401.0,1.57557274]
[1763312462026,0.08496503,94402.0,94401.0,1.57657274]
[1763312462424,0.08496503,94402.0,94401.0,1.57757274]
[1763312462997,0.08496503,94402.0,94401.0,1.57657274]
[1763312463171,0.01662356,94427.0,94420.0,0.00999999]
[1763312463172,0.10150356,94427.0,94420.0,0.00999999]
[1763312463345,0.10150356,94427.0,94426.0,1.403984]
[1763312463346,0.08492507,94427.0,94426.0,1.403984]
[1763312463511,0.08492507,94427.0,94426.0,1.382054]
[1763312463748,0.08492507,94427.0,94426.0,1.42547274]
[1763312464156,0.08492507,94427.0,94426.0,1.382054]
[1763312464468,0.08492507,94427.0,94426.0,1.42547274]
[1763312464710,0.08492507,94427.0,94426.0,1.42647274]
[1763312465891,0.08492507,94427.0,94426.0,1.42747274]
[1763312466887,0.08492507,94427.0,94426.0,1.57652771]
[1763312467087,0.08492507,94427.0,94426.0,1.57552771]
[1763312467670,0.08492507,94427.0,94426.0,1.57452771]
[1763312467826,0.08492507,94427.0,94426.0,1.57552771]
[1763312468022,0.08492507,94427.0,94426.0,1.42547274]
[1763312468225,0.08492507,94427.0,94426.0,1.57452771]
[1763312468995,0.08542643,94427.0,94426.0,1.57652771]
[1763312469191,0.08488,94459.0,94441.0,0.04341874]
[1763312469472,0.08533075,94459.0,94452.0,0.323]
[1763312469632,0.08533075,94459.0,94458.0,1.403984]
[1763312470014,0.08533075,94459.0,94458.0,1.382054]
[1763312470767,0.00045075,94459.0,94458.0,1.63720705]
[1763312471319,0.00045075,94459.0,94458.0,1.42547274]
[1763312471525,0.00045075,94459.0,94458.0,1.42647274]
[1763312471743,0.00045075,94459.0,94458.0,1.42547274]
[1763312472142,0.0002,94460.0,94459.0,0.57815081]
[1763312472343,0.08488,94498.0,94497.0,0.902482]
[1763312472589,0.08501514,94498.0,94497.0,1.42547274]
[1763312472999,0.08660014,94500.0,94499.0,1.42547274]
[1763312474153,5.45673286,94502.0,94501.0,1.10247274]
[1763312474358,5.45673286,94502.0,94501.0,1.42547274]
[1763312475579,5.45673286,94502.0,94501.0,1.42747274]
[1763312475995,5.45882004,94502.0,94501.0,1.42747274]
[1763312476570,5.45882004,94502.0,94501.0,1.42847274]
[1763312477208,5.45882004,94502.0,94501.0,1.42647274]
[1763312477477,5.45882004,94502.0,94501.0,1.42747274]
[1763312477640,5.45882004,94502.0,94501.0,1.42547274]
[1763312478064,5.45882004,94502.0,94501.0,1.42747274]
[1763312478718,5.45882004,94502.0,94501.0,1.384054]
[1763312479380,5.45882004,94502.0,94501.0,1.385054]
[1763312479770,5.45882004,94502.0,94501.0,1.384054]
[1763312480222,5.45882004,94502.0,94501.0,1.383054]
[1763312480674,5.45882004,94502.0,94501.0,1.384054]
[1763312480848,5.45882004,94502.0,94501.0,1.061054]
[1763312481022,5.45882004,94502.0,94501.0,1.060054]
[1763312481788,5.62729942,94502.0,94501.0,1.02956782]
[1763312482087,6.01720362,94502.0,94501.0,0.80646013]
[1763312482290,5.91353424,94502.0,94501.0,0.59855694]
[1763312482915,5.91353424,94502.0,94446.0,5.0]
[1763312482916,0.08946568,94478.0,94446.0,5.0]
[1763312483072,0.08946568,94494.0,94463.0,5.443933]
[1763312483253,0.08946568,94494.0,94460.0,0.65858091]
[1763312483254,0.0848,94493.0,94473.0,0.21169887]
[1763312483459,0.0848,94493.0,94477.0,0.323]
[1763312483656,0.0848,94493.0,94479.0,0.443933]
[1763312483884,0.0848,94493.0,94481.0,0.443933]
[1763312484196,0.0848,94493.0,94477.0,0.323]
[1763312484197,0.0848,94493.0,94483.0,0.443933]
[1763312484430,0.0848,94493.0,94486.0,0.323]
[1763312484629,0.0848,94493.0,94490.0,0.323]
[1763312484833,0.0848,94493.0,94492.0,0.323]
[1763312484984,0.0848,94493.0,94492.0,0.766933]
[1763312485184,0.0848,94493.0,94487.0,0.443933]
[1763312485385,0.08946568,94490.0,94487.0,0.443933]
[1763312485998,0.0848,94492.0,94487.0,0.443933]
[1763312486819,0.13678568,94499.0,94487.0,0.443933]
[1763312486820,0.0848,94491.0,94487.0,0.443933]
[1763312487056,0.01959903,94490.0,94487.0,0.443933]
[1763312490090,0.01959903,94490.0,94488.0,0.09775]
[1763312490306,0.01959903,94490.0,94489.0,0.443933]
[1763312490913,0.01959903,94490.0,94487.0,0.443933]
[1763312492365,0.01959903,94489.0,94487.0,0.443933]
[1763312492588,0.0848,94491.0,94487.0,0.443933]
[1763312492589,0.01959903,94488.0,94487.0,0.443933]
[1763312493415,0.09414893,94488.0,94487.0,0.443933]
[1763312493676,0.09414893,94488.0,94486.0,0.00013514]
[1763312493899,0.08370903,94487.0,94486.0,0.00013514]
[1763312494026,0.08702451,94487.0,94486.0,0.00013514]
[1763312494224,0.02458451,94487.0,94486.0,0.00013514]
[1763312495137,0.08969451,94487.0,94486.0,0.00013514]
[1763312495337,0.08869451,94487.0,94486.0,0.00013514]
[1763312497068,0.08969451,94487.0,94486.0,0.00013514]
[1763312497457,0.08869451,94487.0,94486.0,0.00013514]
[1763312497910,0.08969451,94487.0,94486.0,0.00013514]
[1763312498141,0.09069451,94487.0,94486.0,0.00013514]
[1763312498289,0.08969451,94487.0,94486.0,0.00013514]
[1763312498692,0.09069451,94487.0,94486.0,0.00013514]
[1763312500174,0.43030441,94487.0,94486.0,0.00013514]
[1763312500377,0.36619441,94487.0,94486.0,0.00013514]
[1763312500581,0.04319441,94487.0,94486.0,0.00013514]
[1763312501098,0.03987893,94487.0,94486.0,0.41328814]
[1763312504037,0.03887893,94487.0,94486.0,0.41328814]
[1763312504819,0.02126903,94487.0,94486.0,0.41328814]
[1763312506076,0.00167,94487.0,94486.0,0.41328814]
[1763312506523,0.00167,94487.0,94486.0,5.73628814]
[1763312506700,0.00167,94487.0,94486.0,5.73728814]
[1763312506901,0.00167,94487.0,94486.0,5.78070688]
[1763312507171,0.0002,94550.0,94501.0,0.21163797]
[1763312507373,0.0002,94550.0,94501.0,5.99120971]
[1763312507374,0.08484,94515.0,94501.0,5.99120971]
[1763312507590,0.08484,94515.0,94501.0,5.80006031]
[1763312508429,0.08484,94515.0,94501.0,5.736153]
[1763312508622,0.08484,94515.0,94501.0,5.413153]
[1763312508823,0.08484,94515.0,94501.0,5.736153]
[1763312509066,0.08484,94515.0,94501.0,5.94879097]
[1763312509270,0.08484,94515.0,94501.0,5.99320971]
[1763312509474,0.08484,94515.0,94501.0,5.78057174]
[1763312510212,0.08484,94515.0,94501.0,5.78157174]
[1763312510469,0.08484,94515.0,94501.0,5.78057174]
[1763312510856,0.08484,94515.0,94501.0,5.738153]
[1763312512412,0.08484,94515.0,94501.0,0.415153]
[1763312512809,5.27305883,94502.0,94501.0,0.415153]
[1763312513007,5.27305883,94502.0,94501.0,0.414153]
[1763312513482,5.27305883,94502.0,94501.0,0.415153]